Cogmind - Beta 13 @@@ ROGUE MODE // 2024.04.12 @ 01:17:56 Player: Tenderz Result: Destroyed by G-34 Mercenary with Small Laser Performance ------------- Evolutions (0) 0 Regions Visited (2) 400 Robots Destroyed (31) 155 Value Destroyed (391) 391 Prototype IDs (0) 0 Alien Tech Used (0) 0 Bonus (0) 0 TOTAL SCORE: 946 Bonus ------- None Cogmind --------- Core Integrity 0/250 Matter 104/300 Energy 200/200 System Corruption 0% Temperature Cool (6) Movement Walking (190) Ox1 Location -10/Subcaves Parts ------- > --- POWER (1) -------- Subdweller Power Source > --- PROPULSION (2) --- Aluminum Leg Aluminum Leg > --- UTILITY (2) ------ Large Storage Unit Transport Network Coupler > --- WEAPON (2) ------- Riot Gun Barrage Gun > --- INVENTORY (15) --- Ion Engine Aluminum Leg Disposable Heat Sink Medium Storage Unit Salvage Targeting Computer Hardened Light Armor Plating Beam Rifle Beam Rifle Subdweller Machine Gun Grenade Launcher Dirty Datajack (20) Mining Laser Scrap Shield Fragment (46) Scrap Shield Fragment (44) Peak State ------------ > --- POWER ------------ Subdweller Power Source > --- PROPULSION ------- Aluminum Leg Aluminum Leg > --- UTILITY ---------- Large Storage Unit Transport Network Coupler > --- WEAPON ----------- Riot Gun Barrage Gun > --- INVENTORY -------- Ion Engine Aluminum Leg Aluminum Leg Disposable Heat Sink Medium Storage Unit Salvage Targeting Computer Hardened Light Armor Plating Beam Rifle Beam Rifle Subdweller Machine Gun Grenade Launcher Dirty Datajack Mining Laser Scrap Shield Fragment Scrap Shield Fragment [Rating: 14] Favorites ----------- Power Light Ion Engine Engine Light Ion Engine Propulsion Aluminum Leg Treads Light Treads Leg Aluminum Leg Wheel Subdweller Monowheel Hover Unit Hover Unit Utility Transport Network Coupler Device Seismic Detector Storage Medium Storage Unit Processor Transport Network Coupler Protection Light Armor Plating Weapon Mining Laser Energy Gun Beam Rifle Ballistic Gun Barrage Gun Launcher Grenade Launcher Special Weapon Mining Laser Build | -11 -10 -10 ------- Run | Yrd Mat Sub Slots Evolved . | . . . Power . | . . . Propulsion . | . . . Utility . | . . . Weapon . | . . . Parts Attached 57 | 11 31 15 Power 3 | 1 1 1 Engine 3 | 1 1 1 Core . | . . . Reactor . | . . . Propulsion 19 | 6 10 3 Treads 2 | 2 . . Leg 10 | 2 6 2 Wheel 6 | 2 3 1 Hover 1 | . 1 . Flight . | . . . Utility 10 | 2 7 1 Device 3 | 1 2 . Storage 5 | 1 3 1 Processor 1 | . 1 . Hackware . | . . . Protection 1 | . 1 . Artifact . | . . . Weapon 25 | 2 13 10 Energy Gun 12 | 2 6 4 Energy Cannon . | . . . Ballistic Gun 1 | . . 1 Ballistic Cannon . | . . . Launcher 7 | . 4 3 Special Weapon 5 | . 3 2 Impact Weapon . | . . . Slashing Weapon . | . . . Piercing Weapon . | . . . Special Melee Weapon . | . . . Unidentified Prototypes . | . . . Parts Lost 5 | . 4 1 Power 1 | . 1 . Propulsion 1 | . . 1 Utility . | . . . Weapon 3 | . 3 . Highest Loss Streak 2 | . 2 1 To Critical Strikes . | . . . Average Slot Usage (%) 98 | . 97 100 Engine 13 | . 12 14 Leg 26 | . 27 25 Wheel 1 | . . 2 Device 1 | . 2 . Storage 13 | . 13 14 Processor 11 | . 10 14 Energy Gun 15 | . 16 12 Launcher 5 | . 2 9 Special Weapon 6 | . 7 4 Naked Turns . | . . . Heaviest Build 31 | 14 26 31 Greatest Support 40 | 40 32 20 Greatest Overweight (x) 2 | . 2 1 Average Overweight (x) . | . . . Largest Inventory Capacity 15 | 8 15 15 Average Capacity 10 | 7 9 14 Most Carried 15 | 8 10 15 Average Carried 10 | 5 9 14 Final Capacity 15 | 8 10 15 Final Carried 14 | 8 10 14 Class Distribution -------------------- 100% | Mutant Dominant Class ---------------- Mutant | -10/Materials Mutant | -10/Subcaves Resources | -11 -10 -10 ----------- Run | Yrd Mat Sub Matter Collected 929 | 310 354 265 Remotely . | . . . Salvage Created 585 | 172 305 108 Parts 56 | 9 39 8 Haulers Intercepted 2 | . 2 . Recyclers Shooed 1 | . 1 . Parts Field Recycled . | . . . Retrieved Matter . | . . . Parts Self-Destructed 5 | . . 5 Prevented . | . . . Kills | -11 -10 -10 ------- Run | Yrd Mat Sub Combat Hostiles Destroyed 21 | . 14 7 Guns 2 | . 2 . AOE 19 | . 12 7 Classes Destroyed 10 | 3 5 2 Worker 2 | 1 1 . Builder 1 | . 1 . Tunneler 2 | 2 . . Hauler 2 | . 2 . Recycler 1 | 1 . . Watcher 2 | . 2 . Swarmer 18 | . 12 6 Grunt 2 | . 2 . Cobbler 1 | . . 1 Subdweller 1 | . . 1 Best Kill Streak 8 | 2 8 4 Combat Bots Only 6 | . 6 4 Max Kills in Single Turn 2 | 1 2 2 Gunslinging . | . . . Exploded 2 | . 2 2 Melee . | . . . Uniques/NPCs Destroyed . | . . . Combat | -11 -10 -10 -------- Run | Yrd Mat Sub Hostile Shots Fired 194 | . 81 113 Missed 80 | . 32 48 Damage Taken 1092 | . 536 556 Core 252 | . 54 198 Absorbed by Shields . | . . . Regen/Repaired (Parts) 161 | . 161 . Core Remaining (%) 100 | 100 . . Volleys Fired 183 | 14 92 77 Largest 2 | 2 2 2 Hottest 156 | 80 156 112 Shots Fired 256 | 27 136 93 Gun 151 | 27 92 32 Cannon . | . . . Launcher 36 | . 15 21 Special 69 | . 29 40 Kinetic 5 | . . 5 Thermal 168 | 14 101 53 Explosive 36 | . 15 21 Electromagnetic 47 | 13 20 14 Robot Hit Streak 20 | 6 5 20 Robot Miss Streak 4 | 2 4 4 Penetration Max . | . . . Secondary Targets 1 | . 1 . Max Gunslinging Chain 1 | . 1 . Shots Hit Robots 92 | 17 30 45 Core Hits 59 | 5 29 25 Critical Kills . | . . . Critical Parts Destroyed . | . . . Critical Strikes 3 | . 2 1 Burn 3 | . 2 1 Melee Attacks . | . . . Impact . | . . . Slashing . | . . . Piercing . | . . . Sneak Attacks . | . . . Combat Hostiles . | . . . Follow-up Attacks . | . . . Damage Inflicted 2715 | 228 999 1488 Guns 789 | 228 364 197 Cannons . | . . . Explosions 1446 | . 611 835 Melee . | . . . Ramming . | . . . Kinetic 44 | . . 44 Thermal 850 | 85 250 515 Explosive 1446 | . 611 835 Electromagnetic 375 | 143 138 94 Impact . | . . . Slashing . | . . . Piercing . | . . . Highest Corruption . | . . . Average Corruption . | . . . Corruption Purged . | . . . Corruption Blocked . | . . . Overload Shots . | . . . Overflow Damage 46 | . 31 15 Projectiles . | . . . Explosions 46 | . 31 15 Melee . | . . . Knockbacks . | . . . Impact . | . . . Kinetic . | . . . Secondary . | . . . Self-Inflicted Damage 213 | . 103 110 Shots 12 | . 4 8 Rammed . | . . . Targets Rammed . | . . . Kicked . | . . . Crushed . | . . . Highest Temperature 284 | 54 284 15 Average Temperature 47 | 21 52 6 Received Heat Transfer 360 | . 90 270 Effects 3 | . 3 . Energy Bleed 1 | . 1 . Interference 2 | . 2 . Siege Activations . | . . . Robots Corrupted . | . . . Combat Hostiles . | . . . Parts Fried . | . . . Impact Corruptions . | . . . Robots Melted . | . . . Combat Hostiles . | . . . Parts Melted . | . . . Heat Transferred 2236 | 200 864 1172 Parts Sabotaged . | . . . Parts Stolen . | . . . Parts Stripped . | . . . Power Chain Reactions . | . . . Alert | -11 -10 -10 ------- Run | Yrd Mat Sub Peak Influence 381 | 20 381 . Initial 13 | . 13 . Average 160 | 4 187 . Maximum Alert Level 1 | . 1 . Low Security (%) 64 | 100 58 . Level 1 35 | . 41 . Level 2 . | . . . Level 3 . | . . . Level 4 . | . . . Level 5 . | . . . High Security . | . . . Max Security . | . . . Squads Dispatched . | . . . Investigation . | . . . Extermination . | . . . Reinforcement . | . . . Assault . | . . . Garrison . | . . . Intercept . | . . . Searches Triggered . | . . . Construction Impeded . | . . . Haulers Reinforced . | . . . Active Scanning Responses . | . . . Cargo Convoy Interrupts . | . . . Stealth | -11 -10 -10 --------- Run | Yrd Mat Sub Distress Signals 4 | . 4 . Communications Jammed . | . . . Distress Signals . | . . . Times Spotted 75 | . 25 50 Peak Tracking Total 7 | . 7 6 Tactical Retreats 7 | . 2 5 Traps | -11 -10 -10 ------- Run | Yrd Mat Sub Traps Triggered . | . . . Indirectly . | . . . Trap Hack Attempts . | . . . Triggered . | . . . Disarmed . | . . . Reprogrammed . | . . . Reused . | . . . Traps Extracted . | . . . Installed . | . . . Triggered . | . . . Machines | -11 -10 -10 ---------- Run | Yrd Mat Sub Machines Disabled 6 | . 4 2 Max in Single Turn 2 | . 1 2 Machines Repaired . | . . . Machines Dismantled . | . . . Machines Sabotaged . | . . . Overloaded Fab Kills . | . . . Hacking | -11 -10 -10 --------- Run | Yrd Mat Sub Machines Accessed 6 | . 6 . Terminals 3 | . 3 . Fabricators . | . . . Repair Stations 1 | . 1 . Recycling Units 2 | . 2 . Scanalyzers . | . . . Garrison Access . | . . . Total Hacks 23 | . 23 . Successful 10 | . 10 . Failed 13 | . 13 . Catastrophic 2 | . 2 . Database Lockouts . | . . . Manual 9 | . 9 . Terminals 9 | . 9 . Fabricators . | . . . Repair Stations 11 | . 11 . Recycling Units 3 | . 3 . Scanalyzers . | . . . Garrison Access . | . . . Terminal Hacks 1 | . 1 . Transport Status 1 | . 1 . Fabricator Hacks . | . . . Repair Station Hacks 7 | . 7 . Scan Component 4 | . 4 . Repair 3 | . 3 . Recycling Unit Hacks 2 | . 2 . Retrieve Components 2 | . 2 . Scanalyzer . | . . . Garrison Access Hacks . | . . . Unauthorized Hacks . | . . . Terminals . | . . . Fabricators . | . . . Repair Stations . | . . . Recycling Units . | . . . Scanalyzers . | . . . Garrison Access . | . . . Data Cores Recovered . | . . . Used . | . . . Hacking Detections 4 | . 4 . Full Trace Events 1 | . 1 . Feedback Events . | . . . Feedback Blocked . | . . . Robot Schematics Acquired . | . . . Robots Built . | . . . Authchips . | . . . Time . | . . . Total Robot Build Rating . | . . . Part Schematics Acquired . | . . . Parts Built . | . . . Authchips . | . . . Time . | . . . Total Part Build Rating . | . . . Parts Repaired 3 | . 3 . Time 78 | . 78 . Parts Recycled . | . . . Recycled Matter . | . . . Retrieved Matter . | . . . Retrieved Components 10 | . 10 . Parts Scanalyzed . | . . . Part Schematics Acquired . | . . . Parts Damaged . | . . . Bothacking | -11 -10 -10 ------------ Run | Yrd Mat Sub Used RIF Installer . | . . . Robots Hacked . | . . . Non-combat . | . . . Combat . | . . . Robot Hacks Applied . | . . . Relay Couplers Released . | . . . Fabnet Peak Effective % . | . . . Robots Rewired . | . . . Allies Hacked . | . . . Hacks Repelled . | . . . Allies | -11 -10 -10 -------- Run | Yrd Mat Sub Total Allies . | . . . Largest Group . | . . . Highest-Rated Group . | . . . Highest-Rated Ally . | . . . Total Orders . | . . . Ally Attacks . | . . . Total Damage . | . . . Kills . | . . . Allies Corrupted . | . . . Allies Melted . | . . . Intel | -11 -10 -10 ------- Run | Yrd Mat Sub Robot Analysis Total . | . . . Derelict Logs Recovered . | . . . Drone Launches . | . . . Drone Recoveries . | . . . Exploration | -11 -10 -10 ------------- Run | Yrd Mat Sub Turns Passed 2469 | 239 1421 809 Spaces Moved 1266 | 148 782 336 Core 2 | 2 . . Treads 7 | 7 . . Legs 1131 | 115 780 236 Wheels 125 | 24 1 100 Hover 1 | . 1 . Flight . | . . . Fastest Speed 50 | 50 100 120 Average Speed 128 | 116 120 153 Slowest Speed 190 | 160 190 190 Overloaded Moves . | . . . Propulsion Burnouts . | . . . Robots Hopped . | . . . Cave-ins Triggered . | . . . Exploration Rate (%) 37 | 8 80 24 Regions Visited 2 Branch Regions 1 Pre-discovered Areas . | . . . Known Exits Taken . | . . . Unknown Exits Taken 2 | 1 1 . Scrap Searched . | . . . Spaces Dug 21 | . 21 . Terrain Destroyed 200 | . 107 93 Melee . | . . . Projectile 21 | . 21 . AOE 179 | . 86 93 Terrain Rammed . | . . . Walls Destroyed . | . . . Machines Disabled . | . . . Actions | -11 -10 -10 --------- Run | Yrd Mat Sub Total 1705 | 185 1067 453 Wait 124 | . 116 8 Move 1264 | 147 781 336 Hop . | . . . Pick Up 43 | 9 24 10 Fast Attach 18 | 8 10 . Attach 5 | 1 3 1 Detach 2 | 2 . . Swap 34 | 2 18 14 Drop 31 | 2 23 6 Fire 183 | 14 92 77 Melee . | . . . Ram . | . . . Kick . | . . . Crush . | . . . Escape Stasis . | . . . Rewire 1 | . . 1 Trap . | . . . Miscellaneous . | . . . Route ------- -11/Scrapyard -10/Materials (discovered 3 exits: [*Mat] / [*Min] / [*Sub]) -10/Subcaves (discovered 1 exit: [*Rec]) History --------- Turn | Location | Event 2 | -11/Scrapyard | Met Revision 17 26 | -11/Scrapyard | Discovered new exit (range 16) 240 | -11/Scrapyard | Entered Materials 318 | -10/Materials | Build established: Mutant 560 | -10/Materials | Discovered new exit (range 7) 782 | -10/Materials | Discovered new exit (range 10) 1376 | -10/Materials | Repaired Aluminum Leg 1404 | -10/Materials | Repaired Grenade Launcher 1433 | -10/Materials | Repaired Aluminum Leg 1644 | -10/Materials | Discovered new exit (range 7) 1661 | -10/Materials | Entered Subcaves 1681 | -10/Subcaves | Discovered new exit (range 13) 1714 | -10/Subcaves | Core integrity fell below 50% 2079 | -10/Subcaves | Shifting Twisted Machinery released Riot Gun 2134 | -10/Subcaves | Shifting Twisted Machinery released Barrage Gun 2460 | -10/Subcaves | Core integrity fell below 20% 2470 | -10/Subcaves | Destroyed by G-34 Mercenary with Small Laser Last Messages --------------- Barrage Gun falls loose from the Twisted Machinery. 02136_ RC-RKA(O) puts together Barrage Gun. 02139_ Subatomizers dissect the Beam Rifle. 02145_ Dropped Scrap Shield Fragment. 02146_ Acquired Barrage Gun. 02152_ Subatomizers dissect the Beam Rifle. 02181_ RC-RKA(O) cries out in pain. 02181_ RC-RKA(O) destroyed. 02183_ Acquired 42 matter. 02187_ Dropped Beam Rifle. 02187_ Acquired Sub. Machine Gun. 02257_ Acquired 12 matter. 02290_ Acquired 10 matter. 02300_ Acquired 11 matter. 02313_ Acquired 15 matter. 02420_ F4-BUV(R): "SUBMAD!" 02453_ Destroyed Lgt. Nuclear Core. 02464_ The unstable cave ceiling collapses. 02467_ Aluminum Leg destroyed. Map ----- +----------------------------------------------------+ | ?????????????????????????????????????????????????? | | ?????????????????????????????????????????????????? | | ?????????????????????????????????????????????????? | | ?????????????????????????????????????????????????? | | ?????????????????????????????????????????????????# | | ???????????????????????????###???????????###??#### | | ??????????????????????????## #########?## #### | | ??????????????????????????# ### [ | | ??????????????????????????# """"## | | ????????????????##?#??????### """" ## | | ???????????????## ## #??????## """[ ##### ## | | ?????????????### ???????## "" " #???# ## | | ????????????? ????????# " ####???# | | ???????????? ???????## " ##?????##""" | | ????????????# ????????## #??????#" " | | ?????????????# ?????????## #?###??#"""# | | ?????????????# ########?# & "#?#"####""## | | ?????????????# # ### " ###"" "" # | | ????????????## # "& """ ## # # | | ???????????## " "" ## | | ??????????? ??# "" | | ???????????# ## g # ## """"# # " | | ????????????# ######## "" # ### & | | ?????????????# ##???## "" # " | | ?????????????## #?#### " ### ##"## | | ??????????????# @### "##?####???? | | ??????????????## g ##?????????? | | ???????????????# ## ## "" ##??????????? | | ???????????????## #?#### #### ####???????????? | | ????????????????##?????####??######??????????????? | | ?????????????????????????????????????????????????? | | ?????????????????????????????????????????????????? | | ?????????????????????????????????????????????????? | | ?????????????????????????????????????????????????? | | ?????????????????????????????????????????????????? | | ?????????????????????????????????????????????????? | | ?????????????????????????????????????????????????? | | ?????????????????????????????????????????????????? | | ?????????????????????????????????????????????????? | | ?????????????????????????????????????????????????? | | ?????????????????????????????????????????????????? | | ?????????????????????????????????????????????????? | | ?????????????????????????????????????????????????? | | ?????????????????????????????????????????????????? | | | | | | | | | | | | | +----------------------------------------------------+ Best States ------------- Heat Dissipation 25 Energy Generation 15 Energy Capacity 250 Matter Stores 300 Matter Capacity 300 Sight Range 16 Terrain Scan Density 10 Armor Coverage 150 Evasion (%) 55 Recoil Reduction 2 Item Schematics ----------------- None Robot Schematics ------------------ None Fabricated ------------ Nothing Alien Tech Used ----------------- None Achievements -------------- None Challenges ------------ None Game ------ Seed MappingLegBroadsword Manual? 0 Play Time 00:33:20 Cumulative 9.4 hours Start 2024.04.12 @ 00:41:59 End 2024.04.12 @ 01:17:56 Sessions 1 Manual Loads 0 Difficulty Rogue Special Mode None Game No. 13 Rogue 13 Adventurer 0 Explorer 0 Win Type - Total 0 Types 0/0/0/0/0/0/0/0/0 Lore% 5 Gallery% 16 Achievement% 14 Wizard Run 0 Options --------- Layout 1 ASCII 0 Keyboard 0 Movement Arrows Keybinds 0 Fullscreen 0 Font 28/SmallcapsGlow Map View 50x35 Zoom Use 0% Tactical HUD 1 Map Filters NONE Filters NONE Steam 1 RUN: 13a0b4c5-8aa6-4e9e-b189-0e43287658f6